{"text_format":"1","workbook":"xlsx","n_sheets":1,"sheets":["Ark1"],"not_rendered":{"charts":0,"images":1,"macros":1,"external_links":0,"defined_names":0,"comments":0,"pivot_tables":0},"unopened":[],"bounds":{"document_bytes":16777216,"sheet_cells":100000,"rows_first":2000,"rows_last":500,"rows_between":2000,"halvings":0,"cell_chars":16384,"cell_head_chars":4096},"cells_cut":0,"cells_raw":0,"read":"whole","date_system":"1900"}

{"sheet":"Ark1","index":0,"n_rows":36,"n_cols":10,"rows_kept":36,"cut":false,"hidden":false,"merged":[[0,1,1,9],[11,0,12,2]]}
[null,"Program til opskæring af træpinde"]
[]
["Længde på rå pinde",2600,"Antal"]
["Længde 1 pind",925,15]
["længde 2 pind",875,10,null,null,null,750,925,925,{"$f":"SUM(E5:I5)","v":2600}]
["Længde 3 pind",750,15,null,null,null,750,925,925,2600]
["længde 4 pind",625,9,null,null,null,750,925,925,2600]
["Længde 5 pind",null,null,null,null,null,750,925,925,2600]
["længde 6 pind",null,null,null,null,null,750,925,925,2600]
["Længde 7 pind",null,null,null,null,null,750,925,925,2600]
["længde 8 pind",null,null,null,null,null,750,925,925,2600]
[{"$f":"IF(B3/MIN(B4:B8)>6,\"Forhold mellem råpind og den mindste er for stor\",\"\")","v":""},null,null,null,null,null,750,875,925,2550]
[null,null,null,null,null,null,750,875,875,2500]
[null,null,null,null,null,null,750,875,875,2500]
[null,null,null,null,null,null,750,875,875,2500]
[null,null,null,null,null,null,750,875,875,2500]
[null,null,null,null,null,null,750,750,875,2375]
[null,null,null,null,null,null,625,625,750,2000]
[null,null,null,null,null,625,625,625,625,2500]
[null,null,null,null,null,null,625,625,625,1875]
["Total længe",39500,null,null,null,null,null,null,null,0]
["Bedste antal",{"$f":"COUNTA(I5:I36)","v":16},null,null,null,null,null,null,null,0]
["Spild",{"$f":"B22*B3-B21","v":2100},null,null,null,null,null,null,null,0]
[null,null,null,null,null,null,null,null,null,0]
[null,null,null,null,null,null,null,null,null,0]
[null,null,null,null,null,null,null,null,null,0]
[null,null,null,null,null,null,null,null,null,0]
[null,null,null,null,null,null,null,null,null,0]
[null,null,null,null,null,null,null,null,null,0]
[null,null,null,null,null,null,null,null,null,0]
[null,null,null,null,null,null,null,null,null,0]
[null,null,null,null,null,null,null,null,null,0]
[null,null,null,null,null,null,null,null,null,0]
[null,null,null,null,null,null,null,null,null,0]
[null,null,null,null,null,null,null,null,null,0]
[null,null,null,null,null,null,null,null,null,0]